[Event "*** SCC Grand Prix: Titled Tuesday Blitz"]
[Site "Chess.com"]
[Date "2020.07.07"]
[Round "3"]
[White "IMHansNiemann"]
[Black "Pultis"]
[Result "1-0"]
[WhiteElo "2932"]
[BlackElo "2658"]
[TimeControl "180+1"]
[EndTime "10:30:09 PDT"]
[Termination "IMHansNiemann won by resignation"]

1. d4 {[%clk 0:03:00.9]} 1... Nf6 {[%clk 0:02:59.8]} 2. Nc3 {[%clk 0:02:54.2]}
2... d5 {[%clk 0:02:59]} 3. Bf4 {[%clk 0:02:54.8]} 3... c5 {[%clk 0:02:58.9]} 4.
e3 {[%clk 0:02:54.8]} 4... cxd4 {[%clk 0:02:59.4]} 5. exd4 {[%clk 0:02:54.7]}
5... a6 {[%clk 0:03:00]} 6. Nf3 {[%clk 0:02:55.2]} 6... Nc6 {[%clk 0:03:00.3]}
7. Ne5 {[%clk 0:02:55.8]} 7... Bd7 {[%clk 0:02:49]} 8. g3 {[%clk 0:02:53.2]}
8... e6 {[%clk 0:02:44.6]} 9. Nxd7 {[%clk 0:02:51.1]} 9... Qxd7 {[%clk
0:02:43.1]} 10. Ne2 {[%clk 0:02:49.4]} 10... Bd6 {[%clk 0:02:38.9]} 11. Bg2
{[%clk 0:02:47.1]} 11... Bxf4 {[%clk 0:02:26.4]} 12. Nxf4 {[%clk 0:02:47]} 12...
O-O {[%clk 0:02:24.1]} 13. O-O {[%clk 0:02:46.8]} 13... Qd6 {[%clk 0:02:18]} 14.
c3 {[%clk 0:02:45]} 14... Rfc8 {[%clk 0:02:17.3]} 15. Nd3 {[%clk 0:02:43.9]}
15... Nd7 {[%clk 0:02:16.7]} 16. Qe2 {[%clk 0:02:41.6]} 16... Na5 {[%clk
0:02:02.5]} 17. f4 {[%clk 0:02:38.8]} 17... g6 {[%clk 0:01:59.2]} 18. g4 {[%clk
0:02:38]} 18... Nc4 {[%clk 0:01:55.6]} 19. Rae1 {[%clk 0:02:36.3]} 19... Qb6
{[%clk 0:01:48.2]} 20. Qf2 {[%clk 0:02:30.8]} 20... Nd6 {[%clk 0:01:45.8]} 21.
f5 {[%clk 0:02:06.7]} 21... exf5 {[%clk 0:01:14.9]} 22. gxf5 {[%clk 0:01:59.6]}
22... Nxf5 {[%clk 0:01:15.8]} 23. Bh3 {[%clk 0:01:59.1]} 23... Rc6 {[%clk
0:00:55.8]} 24. Nb4 {[%clk 0:01:25.3]} 24... Rd6 {[%clk 0:00:47.1]} 25. Bxf5
{[%clk 0:01:24.7]} 25... gxf5 {[%clk 0:00:48]} 26. Qxf5 {[%clk 0:01:25.4]} 26...
Nf6 {[%clk 0:00:48.5]} 27. Nxd5 {[%clk 0:01:21]} 27... Nxd5 {[%clk 0:00:44]} 28.
Qxf7+ {[%clk 0:01:20.8]} 28... Kh8 {[%clk 0:00:42.6]} 29. Re8+ {[%clk
0:01:21.7]} 29... Rxe8 {[%clk 0:00:42.7]} 30. Qxe8+ {[%clk 0:01:22.6]} 30... Kg7
{[%clk 0:00:43.5]} 31. Rf7+ {[%clk 0:01:23.5]} 31... Kh6 {[%clk 0:00:36.4]} 32.
Qf8+ {[%clk 0:01:20.6]} 32... Kg5 {[%clk 0:00:34.7]} 33. Rf5+ {[%clk 0:00:50.9]}
33... Kh4 {[%clk 0:00:11.3]} 34. Rxd5 {[%clk 0:00:31.6]} 34... Rxd5 {[%clk
0:00:09.2]} 35. Qf4+ {[%clk 0:00:30.7]} 35... Kh5 {[%clk 0:00:07]} 36. Qf3+
{[%clk 0:00:30.5]} 36... Kh6 {[%clk 0:00:07.6]} 37. Qxd5 {[%clk 0:00:29.2]}
37... Qg6+ {[%clk 0:00:07.5]} 38. Kf2 {[%clk 0:00:26.8]} 38... Qc2+ {[%clk
0:00:07.7]} 39. Kg3 {[%clk 0:00:27.4]} 39... Qxb2 {[%clk 0:00:07.9]} 40. Qe6+
{[%clk 0:00:26.7]} 40... Kg7 {[%clk 0:00:06.1]} 41. Qe5+ {[%clk 0:00:26.7]}
41... Kg6 {[%clk 0:00:06.1]} 42. d5 {[%clk 0:00:26.6]} 42... Qxa2 {[%clk
0:00:05.5]} 43. d6 {[%clk 0:00:25.5]} 43... Qd2 {[%clk 0:00:03]} 44. Qe6+ {[%clk
0:00:21]} 44... Kg7 {[%clk 0:00:03.2]} 45. d7 {[%clk 0:00:20.5]} 45... Qxc3+
{[%clk 0:00:02.9]} 46. Kf4 {[%clk 0:00:19.8]} 46... Qd4+ {[%clk 0:00:03.2]} 47.
Kf5 {[%clk 0:00:18.6]} 47... Qd3+ {[%clk 0:00:02.7]} 48. Ke5 {[%clk 0:00:18.8]}
48... Qe3+ {[%clk 0:00:03.1]} 49. Kd6 {[%clk 0:00:18.3]} 49... Qb6+ {[%clk
0:00:02]} 50. Ke7 {[%clk 0:00:18.3]} 50... Qc5+ {[%clk 0:00:02.3]} 51. Ke8
{[%clk 0:00:15.9]} 51... Qb5 {[%clk 0:00:01.7]} 52. Qe7+ {[%clk 0:00:12.8]}
52... Kg6 {[%clk 0:00:02.6]} 53. Qe6+ {[%clk 0:00:12.5]} 53... Kg7 {[%clk
0:00:02.7]} 54. Qf7+ {[%clk 0:00:12.6]} 54... Kh6 {[%clk 0:00:03]} 55. Qf6+
{[%clk 0:00:12.3]} 55... Kh5 {[%clk 0:00:03.3]} 56. h4 {[%clk 0:00:10.9]} 56...
h6 {[%clk 0:00:03]} 57. Kd8 {[%clk 0:00:09.4]} 57... a5 {[%clk 0:00:02.6]} 58.
Kc8 {[%clk 0:00:08.1]} 58... Qc4+ {[%clk 0:00:02.2]} 59. Kb8 {[%clk 0:00:07.6]}
59... Qf4+ {[%clk 0:00:02.6]} 60. Qxf4 {[%clk 0:00:07]} 1-0

[Event "*** SCC Grand Prix: Titled Tuesday Blitz"]
[Site "Chess.com"]
[Date "2020.07.07"]
[Round "3"]
[White "tlomigtlis"]
[Black "Skatchkov_V"]
[Result "1/2-1/2"]
[WhiteElo "2368"]
[BlackElo "2544"]
[TimeControl "180+1"]
[EndTime "10:30:09 PDT"]
[Termination "Game drawn by repetition"]

1. d4 {[%clk 0:03:00.9]} 1... Nf6 {[%clk 0:02:59]} 2. c4 {[%clk 0:03:00.7]} 2...
e6 {[%clk 0:02:59.6]} 3. Nc3 {[%clk 0:03:00.7]} 3... Bb4 {[%clk 0:02:57]} 4. Qc2
{[%clk 0:03:00.8]} 4... d5 {[%clk 0:02:54.5]} 5. cxd5 {[%clk 0:03:00.6]} 5...
exd5 {[%clk 0:02:55.4]} 6. Nf3 {[%clk 0:02:58]} 6... O-O {[%clk 0:02:52]} 7. Bg5
{[%clk 0:02:57.5]} 7... c6 {[%clk 0:02:52.3]} 8. e3 {[%clk 0:02:56.1]} 8... h6
{[%clk 0:02:49.8]} 9. Bh4 {[%clk 0:02:52.3]} 9... Be6 {[%clk 0:02:47]} 10. Bd3
{[%clk 0:02:51.5]} 10... Nbd7 {[%clk 0:02:47.1]} 11. O-O {[%clk 0:02:51.2]}
11... c5 {[%clk 0:02:38.9]} 12. a3 {[%clk 0:02:39.1]} 12... Ba5 {[%clk
0:02:32.4]} 13. Rad1 {[%clk 0:02:31.9]} 13... Rc8 {[%clk 0:02:30.1]} 14. Bf5
{[%clk 0:02:21]} 14... cxd4 {[%clk 0:02:08.2]} 15. Nxd4 {[%clk 0:02:16.5]} 15...
Bxf5 {[%clk 0:02:08.2]} 16. Nxf5 {[%clk 0:02:08.3]} 16... Bxc3 {[%clk
0:01:44.5]} 17. bxc3 {[%clk 0:02:09.2]} 17... Kh8 {[%clk 0:01:43.9]} 18. Qa4
{[%clk 0:01:35.9]} 18... Qb6 {[%clk 0:01:24.3]} 19. Qf4 {[%clk 0:01:13]} 19...
g5 {[%clk 0:00:41.1]} 20. Bxg5 {[%clk 0:01:07.9]} 20... hxg5 {[%clk 0:00:42]}
21. Qxg5 {[%clk 0:01:08.4]} 21... Rg8 {[%clk 0:00:42.2]} 22. Qh4+ {[%clk
0:01:04.1]} 22... Nh7 {[%clk 0:00:42.3]} 23. Rxd5 {[%clk 0:00:52.5]} 23... Nf6
{[%clk 0:00:42.7]} 24. Rd6 {[%clk 0:00:51.5]} 24... Rc6 {[%clk 0:00:39.7]} 25.
Rd4 {[%clk 0:00:35.3]} 25... Rxc3 {[%clk 0:00:28.5]} 26. Nh6 {[%clk 0:00:33.9]}
26... Rg7 {[%clk 0:00:22.6]} 27. Rfd1 {[%clk 0:00:31.2]} 27... Rc8 {[%clk
0:00:21.7]} 28. Nf5 {[%clk 0:00:27.5]} 28... Rg5 {[%clk 0:00:20.1]} 29. Nd6
{[%clk 0:00:22.9]} 29... Rf8 {[%clk 0:00:19.1]} 30. Ne4 {[%clk 0:00:20.6]} 30...
Rg4 {[%clk 0:00:18.3]} 31. Qh6 {[%clk 0:00:12]} 31... Rxe4 {[%clk 0:00:17.9]}
32. Rd6 {[%clk 0:00:10.3]} 32... Qb2 {[%clk 0:00:15.1]} 33. Rd8 {[%clk
0:00:08.7]} 33... Ree8 {[%clk 0:00:14.3]} 34. R8d4 {[%clk 0:00:07.7]} 34... Qc2
{[%clk 0:00:12.1]} 35. Rf1 {[%clk 0:00:07.3]} 35... Qg6 {[%clk 0:00:12.2]} 36.
Qh3 {[%clk 0:00:06.8]} 36... Re4 {[%clk 0:00:12.1]} 37. Rd6 {[%clk 0:00:06.5]}
37... Qg4 {[%clk 0:00:10.5]} 38. Qh6 {[%clk 0:00:05.8]} 38... Qg6 {[%clk
0:00:10]} 39. Qh3 {[%clk 0:00:05.7]} 39... Rg8 {[%clk 0:00:10.9]} 40. Rfd1
{[%clk 0:00:05.1]} 40... Rh4 {[%clk 0:00:11.2]} 41. Qf3 {[%clk 0:00:04.6]} 41...
Ng5 {[%clk 0:00:11.8]} 42. Qxf6+ {[%clk 0:00:04.1]} 42... Qxf6 {[%clk
0:00:09.4]} 43. Rxf6 {[%clk 0:00:05]} 43... Ne4 {[%clk 0:00:08]} 44. Rf4 {[%clk
0:00:04.2]} 44... Rh5 {[%clk 0:00:06.4]} 45. Rxe4 {[%clk 0:00:04]} 45... Rhg5
{[%clk 0:00:07.1]} 46. g3 {[%clk 0:00:04.1]} 46... Kg7 {[%clk 0:00:07.7]} 47.
Rh4 {[%clk 0:00:04.6]} 47... Ra5 {[%clk 0:00:07.6]} 48. Rhd4 {[%clk 0:00:05.2]}
48... Rxa3 {[%clk 0:00:07.8]} 49. Rg4+ {[%clk 0:00:05.8]} 49... Kh7 {[%clk
0:00:08.5]} 50. Rh4+ {[%clk 0:00:05.9]} 50... Kg7 {[%clk 0:00:08.8]} 51. Rg4+
{[%clk 0:00:06.5]} 51... Kh7 {[%clk 0:00:09.1]} 52. Rh4+ {[%clk 0:00:06.8]}
52... Kg7 {[%clk 0:00:09.8]} 53. Rg4+ {[%clk 0:00:07.1]} 1/2-1/2

[Event "*** SCC Grand Prix: Titled Tuesday Blitz"]
[Site "Chess.com"]
[Date "2020.07.07"]
[Round "3"]
[White "Margarita2907"]
[Black "grandemestregringo"]
[Result "0-1"]
[WhiteElo "2097"]
[BlackElo "2472"]
[TimeControl "180+1"]
[EndTime "10:30:10 PDT"]
[Termination "grandemestregringo won by resignation"]

1. e4 {[%clk 0:03:00.9]} 1... e6 {[%clk 0:02:59.2]} 2. d4 {[%clk 0:03:00]} 2...
d5 {[%clk 0:02:59.7]} 3. Nd2 {[%clk 0:03:00.4]} 3... Nf6 {[%clk 0:02:59.4]} 4.
e5 {[%clk 0:02:59.6]} 4... Nfd7 {[%clk 0:02:59.8]} 5. Ngf3 {[%clk 0:02:57.3]}
5... c5 {[%clk 0:02:59.7]} 6. c3 {[%clk 0:02:54.7]} 6... Nc6 {[%clk 0:03:00]} 7.
Bd3 {[%clk 0:02:53.9]} 7... cxd4 {[%clk 0:02:58.8]} 8. cxd4 {[%clk 0:02:52.9]}
8... a5 {[%clk 0:02:55.7]} 9. O-O {[%clk 0:02:46.9]} 9... Be7 {[%clk 0:02:51.1]}
10. Qc2 {[%clk 0:02:23.6]} 10... Nb4 {[%clk 0:02:49]} 11. Qc3 {[%clk 0:02:23]}
11... Nxd3 {[%clk 0:02:43.7]} 12. Qxd3 {[%clk 0:02:23.9]} 12... b6 {[%clk
0:02:44.6]} 13. Qc2 {[%clk 0:02:19.4]} 13... Ba6 {[%clk 0:02:44.5]} 14. Re1
{[%clk 0:02:18.6]} 14... Rc8 {[%clk 0:02:45.4]} 15. Qa4 {[%clk 0:02:16.1]} 15...
O-O {[%clk 0:02:36.6]} 16. Nf1 {[%clk 0:02:12.2]} 16... b5 {[%clk 0:02:27.9]}
17. Qb3 {[%clk 0:02:09.9]} 17... a4 {[%clk 0:02:28]} 18. Qe3 {[%clk 0:02:09.3]}
18... b4 {[%clk 0:02:22.8]} 19. Ng3 {[%clk 0:02:02.3]} 19... Rc2 {[%clk
0:02:17.9]} 20. a3 {[%clk 0:01:50.2]} 20... b3 {[%clk 0:02:15]} 21. Rd1 {[%clk
0:01:44.4]} 21... Qc7 {[%clk 0:02:13.8]} 22. Ne1 {[%clk 0:01:41.6]} 22... Rc4
{[%clk 0:02:10.8]} 23. f4 {[%clk 0:01:31.9]} 23... Rc8 {[%clk 0:02:08.8]} 24.
Kh1 {[%clk 0:01:25.5]} 24... Bh4 {[%clk 0:02:05.7]} 25. Nd3 {[%clk 0:01:09.1]}
25... Qb6 {[%clk 0:01:44.6]} 26. Nb4 {[%clk 0:01:06.2]} 26... g6 {[%clk
0:01:42.6]} 27. Nxa6 {[%clk 0:00:56.1]} 27... Qxa6 {[%clk 0:01:41.9]} 28. Bd2
{[%clk 0:00:56.4]} 28... Rc2 {[%clk 0:01:35]} 29. Bc3 {[%clk 0:00:54]} 29... Nb6
{[%clk 0:01:30.1]} 30. Rac1 {[%clk 0:00:44]} 30... Nc4 {[%clk 0:01:20.9]} 31.
Qd3 {[%clk 0:00:35.5]} 31... Qc6 {[%clk 0:01:05.8]} 32. Rxc2 {[%clk 0:00:32.2]}
32... bxc2 {[%clk 0:01:05.5]} 33. Rc1 {[%clk 0:00:21.3]} 33... Nxa3 {[%clk
0:01:04.5]} 34. Bb4 {[%clk 0:00:11.8]} 34... Bxg3 {[%clk 0:00:52]} 35. hxg3
{[%clk 0:00:11.2]} 35... Nb5 {[%clk 0:00:48.7]} 36. Bc5 {[%clk 0:00:11.1]} 36...
Nc7 {[%clk 0:00:29.2]} 37. Rxc2 {[%clk 0:00:10.7]} 37... Na8 {[%clk 0:00:29.3]}
38. Rc3 {[%clk 0:00:10.5]} 38... Qb7 {[%clk 0:00:27.9]} 39. Qc2 {[%clk
0:00:09.9]} 39... Qb5 {[%clk 0:00:23.2]} 40. Ra3 {[%clk 0:00:07.4]} 40... Nb6
{[%clk 0:00:22]} 41. Qd2 {[%clk 0:00:05.4]} 41... Nc4 {[%clk 0:00:21]} 42. Qd3
{[%clk 0:00:05.2]} 42... Nxa3 {[%clk 0:00:20.3]} 43. Qxa3 {[%clk 0:00:03.3]}
43... Rb8 {[%clk 0:00:20.1]} 44. Qc3 {[%clk 0:00:03.2]} 44... Qxb2 {[%clk
0:00:19.7]} 45. Qa5 {[%clk 0:00:03.2]} 45... Qb5 {[%clk 0:00:14]} 46. Qc7 {[%clk
0:00:02.9]} 46... Ra8 {[%clk 0:00:11.7]} 47. Qe7 {[%clk 0:00:02.9]} 47... Qa5
{[%clk 0:00:07.4]} 48. Qg5 {[%clk 0:00:02.5]} 48... a3 {[%clk 0:00:06.7]} 49.
Be7 {[%clk 0:00:02.9]} 49... a2 {[%clk 0:00:03.8]} 50. Qh6 {[%clk 0:00:02.9]}
50... a1=Q+ {[%clk 0:00:03.6]} 51. Kh2 {[%clk 0:00:03.2]} 51... Q5a3 {[%clk
0:00:03.7]} 52. Bf6 {[%clk 0:00:02.6]} 52... Qf8 {[%clk 0:00:04.1]} 53. Qxf8+
{[%clk 0:00:01.6]} 53... Kxf8 {[%clk 0:00:04.1]} 0-1

[Event "*** SCC Grand Prix: Titled Tuesday Blitz"]
[Site "Chess.com"]
[Date "2020.07.07"]
[Round "3"]
[White "Klaus1995"]
[Black "H3nriqueTV"]
[Result "1-0"]
[WhiteElo "1873"]
[BlackElo "2219"]
[TimeControl "180+1"]
[EndTime "10:30:10 PDT"]
[Termination "Klaus1995 won by resignation"]

1. e4 {[%clk 0:03:00.9]} 1... c5 {[%clk 0:02:54.6]} 2. Nf3 {[%clk 0:02:59.2]}
2... b6 {[%clk 0:02:46.2]} 3. d4 {[%clk 0:02:59.8]} 3... cxd4 {[%clk 0:02:47.1]}
4. Nxd4 {[%clk 0:02:59]} 4... Bb7 {[%clk 0:02:44.7]} 5. Nc3 {[%clk 0:02:57.8]}
5... a6 {[%clk 0:02:43.1]} 6. Be3 {[%clk 0:02:57.8]} 6... e6 {[%clk 0:02:40.8]}
7. f3 {[%clk 0:02:57.9]} 7... Qc7 {[%clk 0:02:40.5]} 8. Qd2 {[%clk 0:02:57.9]}
8... Nf6 {[%clk 0:02:38.3]} 9. O-O-O {[%clk 0:02:56.5]} 9... d6 {[%clk
0:02:37.4]} 10. Kb1 {[%clk 0:02:55.9]} 10... Nbd7 {[%clk 0:02:36.5]} 11. g4
{[%clk 0:02:55.4]} 11... Ne5 {[%clk 0:02:33.1]} 12. h4 {[%clk 0:02:52.5]} 12...
Be7 {[%clk 0:02:31.8]} 13. h5 {[%clk 0:02:52.3]} 13... b5 {[%clk 0:02:30]} 14.
g5 {[%clk 0:02:52.6]} 14... Nfd7 {[%clk 0:02:30.1]} 15. a3 {[%clk 0:02:39]}
15... Nc4 {[%clk 0:02:28.3]} 16. Bxc4 {[%clk 0:02:38.4]} 16... Qxc4 {[%clk
0:02:25.6]} 17. f4 {[%clk 0:02:32.1]} 17... Rc8 {[%clk 0:02:10.2]} 18. Rhg1
{[%clk 0:02:29.2]} 18... Nc5 {[%clk 0:02:03.9]} 19. e5 {[%clk 0:02:28]} 19...
dxe5 {[%clk 0:01:25.2]} 20. fxe5 {[%clk 0:02:27.8]} 20... Ne4 {[%clk 0:01:26.1]}
21. Nxe4 {[%clk 0:02:27.6]} 21... Bxe4 {[%clk 0:01:27]} 22. Ka1 {[%clk
0:01:34.5]} 22... b4 {[%clk 0:01:06.7]} 23. b3 {[%clk 0:01:30.7]} 23... Qc3+
{[%clk 0:01:03.4]} 24. Qxc3 {[%clk 0:01:30.4]} 24... bxc3 {[%clk 0:01:03.6]} 25.
Ka2 {[%clk 0:01:20.2]} 25... Bc5 {[%clk 0:01:02.8]} 26. Rc1 {[%clk 0:01:12.3]}
26... O-O {[%clk 0:01:01.7]} 27. Rge1 {[%clk 0:01:08.2]} 27... Rfd8 {[%clk
0:01:00.9]} 28. Nxe6 {[%clk 0:01:03.1]} 28... fxe6 {[%clk 0:00:57]} 29. Bxc5
{[%clk 0:01:02.4]} 29... Bxc2 {[%clk 0:00:57.3]} 30. Bd6 {[%clk 0:00:54.3]}
30... Bf5 {[%clk 0:00:54.6]} 31. h6 {[%clk 0:00:40.7]} 31... g6 {[%clk
0:00:53.2]} 32. Red1 {[%clk 0:00:36.8]} 32... Rc6 {[%clk 0:00:50.9]} 33. Be7
{[%clk 0:00:34.4]} 33... Rdc8 {[%clk 0:00:50.8]} 34. Bf6 {[%clk 0:00:33]} 34...
R6c7 {[%clk 0:00:49.4]} 35. Rd6 {[%clk 0:00:31]} 35... c2 {[%clk 0:00:46.7]} 36.
Rxa6 {[%clk 0:00:27.7]} 36... Rd7 {[%clk 0:00:44.3]} 37. Rd6 {[%clk 0:00:27.1]}
37... Rcc7 {[%clk 0:00:37.9]} 38. Kb2 {[%clk 0:00:23.5]} 38... Kf7 {[%clk
0:00:36.1]} 39. Rxd7+ {[%clk 0:00:20.7]} 39... Rxd7 {[%clk 0:00:35]} 40. Rxc2
{[%clk 0:00:21.1]} 40... Bxc2 {[%clk 0:00:33.8]} 41. Kxc2 {[%clk 0:00:22]} 41...
Rd5 {[%clk 0:00:32.3]} 42. Kc3 {[%clk 0:00:21]} 42... Ke8 {[%clk 0:00:32.6]} 43.
b4 {[%clk 0:00:21.1]} 43... Kd7 {[%clk 0:00:33.5]} 44. a4 {[%clk 0:00:20.9]}
44... Kc6 {[%clk 0:00:34]} 45. Kc4 {[%clk 0:00:20]} 45... Rd1 {[%clk 0:00:34]}
46. b5+ {[%clk 0:00:20.4]} 46... Kb6 {[%clk 0:00:30]} 47. Kb3 {[%clk 0:00:09.4]}
47... Rd4 {[%clk 0:00:29]} 48. Be7 {[%clk 0:00:08.5]} 48... Ka5 {[%clk
0:00:26.5]} 49. Bd6 {[%clk 0:00:07.5]} 49... Rxa4 {[%clk 0:00:23.9]} 50. b6
{[%clk 0:00:07.7]} 50... Ra1 {[%clk 0:00:20]} 51. Bc7 {[%clk 0:00:05]} 51...
Rb1+ {[%clk 0:00:19.5]} 52. Kc4 {[%clk 0:00:05.5]} 52... Ka6 {[%clk 0:00:18.9]}
53. Kc5 {[%clk 0:00:05.6]} 53... Rd1 {[%clk 0:00:18]} 54. Kc6 {[%clk 0:00:05.2]}
54... Rc1+ {[%clk 0:00:17.8]} 55. Kd7 {[%clk 0:00:05.6]} 55... Kb7 {[%clk
0:00:18.1]} 56. Kxe6 {[%clk 0:00:06.5]} 56... Rf1 {[%clk 0:00:15.6]} 57. Ke7
{[%clk 0:00:05.3]} 57... Rf5 {[%clk 0:00:14.8]} 58. e6 {[%clk 0:00:06.2]} 58...
Rxg5 {[%clk 0:00:15]} 59. Kf6 {[%clk 0:00:06.4]} 59... Rf5+ {[%clk 0:00:15.1]}
60. Kg7 {[%clk 0:00:06.1]} 60... Rf1 {[%clk 0:00:14.8]} 61. Kxh7 {[%clk
0:00:06.1]} 61... g5 {[%clk 0:00:15.7]} 62. Kg7 {[%clk 0:00:06.4]} 62... g4
{[%clk 0:00:15.9]} 63. h7 {[%clk 0:00:07.3]} 63... Rh1 {[%clk 0:00:14.7]} 64.
h8=Q {[%clk 0:00:08.2]} 1-0

[Event "*** SCC Grand Prix: Titled Tuesday Blitz"]
[Site "Chess.com"]
[Date "2020.07.07"]
[Round "3"]
[White "swisspower96"]
[Black "sewin16"]
[Result "1-0"]
[WhiteElo "2614"]
[BlackElo "2410"]
[TimeControl "180+1"]
[EndTime "10:30:12 PDT"]
[Termination "swisspower96 won on time"]

1. d4 {[%clk 0:03:00.9]} 1... Nf6 {[%clk 0:02:59.1]} 2. c4 {[%clk 0:03:00.9]}
2... e6 {[%clk 0:02:58.8]} 3. Nf3 {[%clk 0:02:59.4]} 3... b6 {[%clk 0:02:58.7]}
4. g3 {[%clk 0:02:59.4]} 4... Ba6 {[%clk 0:02:58.6]} 5. Nbd2 {[%clk 0:02:59.3]}
5... Bb4 {[%clk 0:02:52.7]} 6. Qa4 {[%clk 0:02:57.3]} 6... Bxd2+ {[%clk
0:02:50.5]} 7. Bxd2 {[%clk 0:02:55.8]} 7... Bb7 {[%clk 0:02:51]} 8. Bg2 {[%clk
0:02:55.1]} 8... O-O {[%clk 0:02:48.7]} 9. O-O {[%clk 0:02:53.7]} 9... Be4
{[%clk 0:02:43.6]} 10. Rac1 {[%clk 0:02:42.2]} 10... h6 {[%clk 0:02:40.7]} 11.
Rfd1 {[%clk 0:02:40.9]} 11... Nc6 {[%clk 0:02:39.7]} 12. Bc3 {[%clk 0:02:36.4]}
12... Re8 {[%clk 0:02:34.5]} 13. Ne5 {[%clk 0:02:15.8]} 13... Bxg2 {[%clk
0:02:32]} 14. Kxg2 {[%clk 0:02:16.7]} 14... Ne7 {[%clk 0:02:13.5]} 15. f3 {[%clk
0:01:58.1]} 15... d6 {[%clk 0:02:11.6]} 16. Nd3 {[%clk 0:01:57.3]} 16... Qd7
{[%clk 0:02:08.5]} 17. Qxd7 {[%clk 0:01:53.1]} 17... Nxd7 {[%clk 0:02:09.4]} 18.
e4 {[%clk 0:01:53.5]} 18... Rec8 {[%clk 0:02:05.1]} 19. b4 {[%clk 0:01:52.3]}
19... c6 {[%clk 0:01:56.7]} 20. a4 {[%clk 0:01:48.7]} 20... d5 {[%clk
0:01:48.3]} 21. c5 {[%clk 0:01:42.5]} 21... bxc5 {[%clk 0:01:46.1]} 22. dxc5
{[%clk 0:01:40]} 22... a6 {[%clk 0:01:34.7]} 23. Rb1 {[%clk 0:01:17.7]} 23... f6
{[%clk 0:01:28]} 24. Nc1 {[%clk 0:01:11.2]} 24... Kf7 {[%clk 0:01:25.8]} 25. Nb3
{[%clk 0:01:11.3]} 25... e5 {[%clk 0:01:23.4]} 26. Na5 {[%clk 0:01:10.7]} 26...
d4 {[%clk 0:01:22]} 27. Bd2 {[%clk 0:01:09.1]} 27... Rab8 {[%clk 0:01:19.5]} 28.
f4 {[%clk 0:01:03.9]} 28... f5 {[%clk 0:01:01.4]} 29. exf5 {[%clk 0:00:48.1]}
29... e4 {[%clk 0:00:58.6]} 30. g4 {[%clk 0:00:35.5]} 30... Nd5 {[%clk
0:00:56.4]} 31. Nc4 {[%clk 0:00:34.7]} 31... Kf8 {[%clk 0:00:46.7]} 32. Kg3
{[%clk 0:00:34.1]} 32... N7f6 {[%clk 0:00:35.4]} 33. Be1 {[%clk 0:00:29.7]}
33... d3 {[%clk 0:00:31.2]} 34. Bf2 {[%clk 0:00:29.8]} 34... Nxb4 {[%clk
0:00:29.7]} 35. Nd6 {[%clk 0:00:24]} 35... Rd8 {[%clk 0:00:28.9]} 36. Bd4 {[%clk
0:00:23.9]} 36... Nbd5 {[%clk 0:00:18.3]} 37. Bxf6 {[%clk 0:00:20.6]} 37... Nxf6
{[%clk 0:00:16.1]} 38. g5 {[%clk 0:00:20.1]} 38... Nd5 {[%clk 0:00:12.3]} 39.
Nxe4 {[%clk 0:00:19.8]} 39... Re8 {[%clk 0:00:11]} 40. Kf3 {[%clk 0:00:19.5]}
40... Rxb1 {[%clk 0:00:08.7]} 41. Rxb1 {[%clk 0:00:19.3]} 41... Rxe4 {[%clk
0:00:09.2]} 42. Kxe4 {[%clk 0:00:14.9]} 42... Nc3+ {[%clk 0:00:09.3]} 43. Kxd3
{[%clk 0:00:15.2]} 43... Nxb1 {[%clk 0:00:10.2]} 44. Kc2 {[%clk 0:00:15.6]}
44... Na3+ {[%clk 0:00:09.4]} 45. Kb3 {[%clk 0:00:15.1]} 45... Nb1 {[%clk
0:00:09.3]} 46. Kc2 {[%clk 0:00:14.5]} 46... Na3+ {[%clk 0:00:09.2]} 47. Kd3
{[%clk 0:00:14.5]} 47... Ke7 {[%clk 0:00:08]} 48. h4 {[%clk 0:00:14.5]} 48...
Nb1 {[%clk 0:00:06.4]} 49. h5 {[%clk 0:00:13.5]} 49... Na3 {[%clk 0:00:05.5]}
50. Kc3 {[%clk 0:00:09.6]} 50... Nb1+ {[%clk 0:00:05.1]} 51. Kc2 {[%clk
0:00:10.2]} 51... Na3+ {[%clk 0:00:05.2]} 52. Kb3 {[%clk 0:00:10.5]} 52... Nb1
{[%clk 0:00:05.2]} 53. Kb4 {[%clk 0:00:10.7]} 53... Nd2 {[%clk 0:00:04.7]} 54.
Ka5 {[%clk 0:00:10.8]} 54... Nb3+ {[%clk 0:00:04.4]} 55. Kb6 {[%clk 0:00:09.1]}
55... Kd7 {[%clk 0:00:03.2]} 56. f6 {[%clk 0:00:08.4]} 56... gxf6 {[%clk
0:00:02.3]} 57. gxh6 {[%clk 0:00:09]} 57... Nd4 {[%clk 0:00:02.2]} 58. h7 {[%clk
0:00:09.4]} 1-0